[Event "98th Caplin Hastings Masters 2024-25"]
[Site "Hastings"]
[Date "2025.01.01"]
[Round "7.1"]
[White "Laurent-Paoli, Pierre"]
[Black "Stefansson, Vignir Vatnar"]
[Result "1/2-1/2"]
[ECO "B12"]
[WhiteElo "2559"]
[BlackElo "2537"]
[Annotator "TA"]
[PlyCount "113"]
[EventDate "2024.12.23"]
[EventType "swiss"]
[EventCountry "ENG"]
[SourceTitle "playchess.com"]
[Source "ChessBase"]
[SourceQuality "1"]
[TimeControl "5400+30"]

{[%evp 9,113,-4,-4,-4,26,26,55,59,63,55,49,50,51,50,54,54,59,43,52,48,61,66,75,34,60,25,35,17,24,14,11,20,27,10,11,0,0,5,0,0,7,0,0,-15,0,0,0,0,0,0,0,0,0,-9,0,-7,0,0,0,0,0,-8,0,0,0,0,0,0,0,0,0,0,0,0,0,0,0,0,0,0,0,0,0,0,0,0,0,-20,0,0,0,0,0,0,0,0,0,0,0,0,0,0,0,0,0,0]} 1. e4 {[%emt 0:08:48]} c6 {[%emt 0:06:20]} 2. d4 {[%emt 0:00:12]} d5 {[%emt 0:00:05]} 3. e5 {[%emt 0:00:32]} c5 {[%emt 0:00:07]} 4. Nf3 {[%emt 0:00:58]} cxd4 {[%emt 0:00:05]} 5. Qxd4 {[%emt 0:00:04]} Nc6 {[%emt 0:00:10]} 6. Qf4 {[%emt 0:00:05]} g6 {[%emt 0:00:06]} 7. Nc3 {[%emt 0:02:37]} d4 {[%emt 0:00:35][%cal Of8h6] and ...Bh6! should not be overlooked Dodges Be3} 8. Nb5 {[%emt 0:02:01][%cal Oe5e6] Hoping for e6!.} Bh6 {[%emt 0:02:47]} 9. Qh4 $1 {[%emt 0:03:08] White is much more active.} Bxc1 {[%emt 0:00:17]} 10. Rxc1 {[%emt 0:00:04][%cal Oh4f4]} a6 {[%emt 0:12:43]} 11. Nbxd4 {[%emt 0:01:00]} Nxe5 {[%emt 0:00:28]} 12. Nxe5 {[%emt 0:04:16]} Qa5+ {[%emt 0:00:05]} 13. c3 {[%emt 0:00:05]} Qxe5+ {[%emt 0:00:05]} 14. Be2 {[%emt 0:00:03]} Nf6 {[%emt 0:04:22]} 15. O-O {[%emt 0:00:22]} O-O {[%emt 0:01:22]} 16. Rfe1 {[%emt 0:00:26]} Qc7 {[%emt 0:01:58]} 17. Bf3 {[%emt 0:01:46]} Kg7 {[%emt 0:00:13]} 18. Qg5 {[%emt 0:10:26]} h6 {[%emt 0:06:36]} 19. Qe5 {[%emt 0:02:08]} Qxe5 {[%emt 0:00:05]} 20. Rxe5 {[%emt 0:00:04]} Re8 {[%emt 0:09:36]} 21. c4 {[%emt 0:06:21]} Rb8 {[%emt 0:03:51][%cal Ba8b8,Bb8d8,Bd8d5][%mdl 32]} 22. c5 {[%emt 0:01:51]} Bg4 {[%emt 0:00:22]} 23. Bxg4 {[%emt 0:08:27]} Nxg4 {[%emt 0:00:08]} 24. Re2 {[%emt 0:00:30]} Rbd8 {[%emt 0:01:29]} 25. Nb3 {[%emt 0:01:00]} Rd5 {[%emt 0:00:34]} 26. Na5 {[%emt 0:06:05]} b6 {[%emt 0:01:29]} 27. Nb3 {[%emt 0:00:05]} bxc5 {[%emt 0:09:36]} 28. Nxc5 {[%emt 0:00:20]} a5 {[%emt 0:02:06]} 29. h3 {[%emt 0:03:35]} Nf6 {[%emt 0:00:39]} 30. Na4 {[%emt 0:01:58]} e6 {[%emt 0:02:14]} 31. Nc3 {[%emt 0:00:45]} Rd3 {[%emt 0:02:17]} 32. Rcc2 {[%emt 0:06:07]} Red8 {[%emt 0:00:18]} 33. Re5 {[%emt 0:01:02]} Rd2 {[%emt 0:02:02]} 34. Rxd2 {[%emt 0:00:27]} Rxd2 $11 {[%emt 0:00:04][%mdl 4096] Endgame KRN-KRN} 35. Re2 {[%emt 0:00:03]} Rd4 {[%emt 0:01:13]} 36. Kf1 {[%emt 0:01:25]} Nd5 {[%emt 0:00:33]} 37. Nxd5 {[%emt 0:03:14]} exd5 {[%emt 0:00:06] KR-KR} 38. Ke1 {[%emt 0:03:05]} a4 {[%emt 0:00:18]} 39. Rd2 {[%emt 0:02:34]} Rb4 {[%emt 0:00:07]} 40. Kd1 {[%emt 0:00:44]} Kf6 {[%emt 0:00:11]} 41. Re2 {[%emt 0:00:50]} h5 {[%emt 0:01:12]} 42. Kc2 {[%emt 0:02:17]} Rc4+ {[%emt 0:00:37]} 43. Kd3 {[%emt 0:00:43]} Rb4 {[%emt 0:01:57]} 44. Kc3 {[%emt 0:05:15]} Rc4+ {[%emt 0:00:10]} 45. Kd2 {[%emt 0:00:18]} Rb4 {[%emt 0:00:22]} 46. Kc2 {[%emt 0:00:08]} Rc4+ {[%emt 0:00:34]} 47. Kb1 {[%emt 0:02:09]} Rc6 {[%emt 0:09:09]} 48. Re3 {[%emt 0:03:34]} Re6 {[%emt 0:01:20]} 49. b3 {[%emt 0:05:56]} axb3 {[%emt 0:01:40]} 50. axb3 {[%emt 0:00:07]} Ke7 {[%emt 0:01:31]} 51. Kc2 {[%emt 0:00:43]} Kd7 {[%emt 0:00:04]} 52. Rf3 {[%emt 0:03:58]} Rc6+ {[%emt 0:01:32]} 53. Kd3 {[%emt 0:00:07]} Ke6 {[%emt 0:00:11]} 54. Re3+ {[%emt 0:00:10]} Kd6 {[%emt 0:00:09]} 55. Rf3 {[%emt 0:00:22]} Ke6 {[%emt 0:00:10] Wards off Rf6+} 56. Re3+ {[%emt 0:00:03]} Kd6 {[%emt 0:00:04]} 57. Rf3 {[%emt 0:00:13]} 1/2-1/2

[Event "98th Caplin Hastings Masters 2024-25"]
[Site "Hastings"]
[Date "2025.01.01"]
[Round "7.2"]
[White "Zhang, Pengxiang"]
[Black "Seo, Jung Min"]
[Result "1/2-1/2"]
[ECO "B95"]
[WhiteElo "2567"]
[BlackElo "2491"]
[Annotator "TA"]
[PlyCount "71"]
[EventDate "2024.12.23"]
[EventType "swiss"]
[EventCountry "ENG"]
[SourceTitle "playchess.com"]
[Source "ChessBase"]
[SourceQuality "1"]
[TimeControl "5400+30"]

{[%evp 13,71,0,12,12,7,0,0,0,0,0,0,-16,0,0,-11,-7,0,-25,0,0,0,-1,0,0,0,0,0,0,0,0,0,0,0,0,0,-13,0,0,0,0,0,0,0,-9,-7,-13,-27,-10,-20,-22,-12,-25,0,-6,0,-26,0,-14,0,-8]} 1. e4 {[%emt 0:00:12]} c5 {[%emt 0:00:03]} 2. Nf3 {[%emt 0:00:12]} d6 {[%emt 0:00:02]} 3. d4 {[%emt 0:00:06]} cxd4 {[%emt 0:00:02]} 4. Nxd4 {[%emt 0:00:07]} Nf6 {[%emt 0:00:01]} 5. Nc3 {[%emt 0:00:08]} a6 {[%emt 0:00:01]} 6. Bg5 {[%emt 0:00:13]} e6 {[%emt 0:00:18]} 7. Qf3 {[%emt 0:00:15]} Nbd7 {[%emt 0:01:05]} 8. a4 {[%emt 0:00:25]} Be7 {[%emt 0:03:33]} 9. Bd3 {[%emt 0:00:41]} Ne5 {[%emt 0:07:52]} 10. Qg3 {[%emt 0:22:48]} Nxd3+ {[%emt 0:21:31]} 11. Qxd3 {[%emt 0:11:16]} h6 {[%emt 0:01:00]} 12. Bh4 {[%emt 0:01:43]} O-O {[%emt 0:17:50]} 13. O-O {[%emt 0:01:40]} Bd7 {[%emt 0:00:54]} 14. Rfd1 {[%emt 0:09:01]} Rc8 {[%emt 0:04:22]} 15. Nde2 {[%emt 0:02:27][%cal Oe4e5]} Bc6 {[%emt 0:00:44]} 16. a5 {[%emt 0:08:50]} d5 {[%emt 0:03:01]} 17. Bxf6 {[%emt 0:11:21]} Bxf6 {[%emt 0:00:03]} 18. exd5 {[%emt 0:00:07]} exd5 {[%emt 0:01:14]} 19. Nd4 {[%emt 0:01:45]} Qc7 {[%emt 0:11:20]} 20. Nce2 {[%emt 0:02:21]} Rfe8 {[%emt 0:01:41]} 21. c3 {[%emt 0:00:09]} Rcd8 {[%emt 0:00:48]} 22. Ng3 {[%emt 0:00:13]} g6 {[%emt 0:00:43]} 23. h3 {[%emt 0:01:51]} h5 {[%emt 0:01:56]} 24. Nf1 {[%emt 0:00:02]} Bg5 {[%emt 0:00:43]} 25. Nd2 {[%emt 0:01:37]} Bf6 {[%emt 0:00:50]} 26. Nf1 {[%emt 0:00:21]} Bg5 {[%emt 0:00:10]} 27. Nd2 {[%emt 0:00:05]} Bf6 {[%emt 0:00:04]} 28. N2f3 {[%emt 0:00:12]} Re4 {[%emt 0:01:40]} 29. Rd2 {[%emt 0:04:45]} Bd7 {[%emt 0:01:12]} 30. Rdd1 {[%emt 0:00:16]} Rde8 {[%emt 0:01:49]} 31. Nd2 {[%emt 0:03:15][%cal Bf3d2,Bd2f1,Bf1g3][%mdl 32] A dynamic duo of knights.} R4e7 {[%emt 0:00:12]} 32. Nf1 {[%emt 0:01:58]} Re4 {[%emt 0:12:42]} 33. Ng3 {[%emt 0:07:08]} R4e7 {[%emt 0:00:10]} 34. Nf1 {[%emt 0:01:54]} Re4 {[%emt 0:00:07]} 35. Ng3 {[%emt 0:02:59]} R4e7 {[%emt 0:00:09]} 36. Nf1 {[%emt 0:02:02] Not much happened in this game.   Weighted Error Value: White=0.03 (flawless) /Black=0.05 (flawless) .  OK:         	White=18    	Black=8} 1/2-1/2

[Event "98th Caplin Hastings Masters 2024-25"]
[Site "Hastings"]
[Date "2025.01.01"]
[Round "7.3"]
[White "Royal, Shreyas"]
[Black "Balaji, Aaravamudhan"]
[Result "1/2-1/2"]
[ECO "C55"]
[WhiteElo "2522"]
[BlackElo "2364"]
[Annotator "TA"]
[PlyCount "140"]
[EventDate "2024.12.23"]
[EventType "swiss"]
[EventCountry "ENG"]
[SourceTitle "playchess.com"]
[Source "ChessBase"]
[SourceQuality "1"]
[TimeControl "5400+30"]

{[%evp 51,140,-127,-85,-118,-89,-87,-77,-77,8,8,8,8,5,7,9,8,6,8,8,6,11,0,0,0,7,0,0,0,0,0,0,0,0,0,0,0,0,0,0,0,0,0,0,0,0,0,0,0,0,0,0,0,6,0,0,0,0,0,0,0,0,0,0,0,0,0,0,0,0,0,0,0,0,0,0,0,0,0,0,0,0,0,0,0,0,0,0,0,0,0,0]} 1. e4 {[%emt 0:00:03]} e5 {[%emt 0:00:07]} 2. Nf3 {[%emt 0:00:05]} Nc6 {[%emt 0:00:04]} 3. Bc4 {[%emt 0:00:36]} Nf6 {[%emt 0:00:07]} 4. d3 {[%emt 0:00:04]} Be7 {[%emt 0:00:04]} 5. O-O {[%emt 0:00:20]} O-O {[%emt 0:00:05]} 6. Re1 {[%emt 0:00:05]} d6 {[%emt 0:00:09]} 7. a4 {[%emt 0:00:05]} Be6 {[%emt 0:01:10]} 8. Bxe6 {[%emt 0:00:38]} fxe6 {[%emt 0:00:05]} 9. c3 {[%emt 0:00:05]} a5 {[%emt 0:11:33]} 10. Qb3 {[%emt 0:00:10]} Qd7 {[%emt 0:00:13]} 11. Nbd2 {[%emt 0:00:59]} b6 {[%emt 0:15:51]} 12. Nf1 {[%emt 0:00:14]} Rae8 {[%emt 0:02:38]} 13. Ng3 {[%emt 0:12:40]} Kh8 {[%emt 0:03:05]} 14. Bd2 {[%emt 0:00:57]} Bd8 {[%emt 0:09:32]} 15. d4 {[%emt 0:01:39]} exd4 {[%emt 0:05:09]} 16. cxd4 {[%emt 0:00:09]} Ne7 {[%emt 0:00:21]} 17. h4 {[%emt 0:21:08]} Ng4 {[%emt 0:09:22]} 18. h5 {[%emt 0:00:06]} Ng8 {[%emt 0:07:09]} 19. Re2 {[%emt 0:00:05]} Qf7 {[%emt 0:13:20]} 20. Rc1 {[%emt 0:02:53]} N8f6 {[%emt 0:05:33]} 21. Qb5 {[%emt 0:08:13]} c5 {[%emt 0:06:02]} 22. dxc5 {[%emt 0:03:54]} dxc5 {[%emt 0:00:57]} 23. Ng5 {[%emt 0:05:22]} Qd7 {[%emt 0:06:05]} 24. Qb3 {[%emt 0:03:35]} Bc7 {[%emt 0:00:01]} 25. Rce1 {[%emt 0:01:41]} Be5 {[%emt 0:02:58]} 26. Nh3 {[%emt 0:01:40]} (26. Qxb6 $2 $19 {too greedy.}) ({White should play} 26. Nf1) 26... c4 {[%emt 0:01:06]} 27. Qxc4 {[%emt 0:01:00]} Bxg3 28. fxg3 {[%emt 0:00:01]} Rc8 $1 {[%emt 0:00:38]} 29. Qb3 {[%emt 0:00:26] [#]} Nxe4 {[%emt 0:00:50]} (29... Nxh5 $1 $17 30. e5 (30. Nf4 Qd4+) 30... h6) 30. Rxe4 $11 {[%emt 0:01:22]} Qxd2 {[%emt 0:00:02]} 31. Qd1 {[%emt 0:04:20]} Qxd1 {[%emt 0:00:13]} 32. Rxd1 {[%emt 0:00:01]} Nf6 {[%emt 0:00:10]} 33. Rxe6 {[%emt 0:05:44]} Nxh5 {[%emt 0:00:02]} 34. g4 {[%emt 0:00:06]} Nf4 {[%emt 0:01:28]} 35. Rxb6 {[%emt 0:00:29]} h6 $1 {[%emt 0:00:01]} 36. Rd2 {[%emt 0:00:58]} Rc4 {[%emt 0:00:55]} 37. b3 {[%emt 0:01:39]} Rc3 {[%emt 0:00:27]} 38. Nxf4 {[%emt 0:04:22]} Rxf4 {[%emt 0:00:02]} 39. Rb5 {[%emt 0:03:17]} Rxg4 {[%emt 0:00:19]} 40. Rxa5 {[%emt 0:00:03]} Rxb3 {[%emt 0:00:17]} 41. Ra2 {[%emt 0:00:07]} Rgg3 {[%emt 0:01:23]} 42. Rc5 {[%emt 0:00:39]} Rb6 {[%emt 0:00:58]} 43. a5 {[%emt 0:01:34]} Ra6 {[%emt 0:00:00]} 44. Kf2 {[%emt 0:00:05]} Rb3 {[%emt 0:00:19]} 45. Ra4 {[%emt 0:00:26]} Kh7 {[%emt 0:01:29]} 46. g4 {[%emt 0:00:25]} Kg6 {[%emt 0:00:38]} 47. Rf5 {[%emt 0:00:03]} Kh7 {[%emt 0:00:14]} 48. Ke2 {[%emt 0:00:06]} g6 {[%emt 0:00:46]} 49. Rc5 {[%emt 0:01:06]} Kg7 {[%emt 0:00:24]} 50. Kd2 {[%emt 0:00:04]} Kf7 {[%emt 0:00:32]} 51. Kc2 {[%emt 0:00:04]} Rb7 {[%emt 0:00:33]} 52. Re4 {[%emt 0:00:45]} Kf6 {[%emt 0:00:28]} 53. Kc3 {[%emt 0:02:18]} Rb1 {[%emt 0:00:09]} 54. Ra4 {[%emt 0:00:04]} h5 {[%emt 0:00:43]} 55. gxh5 {[%emt 0:00:23]} Rc1+ {[%emt 0:00:37]} 56. Kb4 $1 {[%emt 0:00:04]} Rxc5 {[%emt 0:00:04]} 57. Kxc5 {[%emt 0:00:03]} gxh5 {[%emt 0:00:04]} 58. Kb5 {[%emt 0:00:04]} Ra8 {[%emt 0:00:24]} 59. Kb6 {[%emt 0:00:36]} Kg5 {[%emt 0:00:14]} 60. Kb7 {[%emt 0:00:03]} Re8 {[%emt 0:01:30]} 61. a6 {[%emt 0:01:50]} h4 {[%emt 0:00:14]} 62. a7 {[%emt 0:00:02]} h3 {[%emt 0:00:44]} 63. Ra2 {[%emt 0:00:03]} Re7+ {[%emt 0:00:47]} 64. Kc6 {[%emt 0:00:05]} Rxa7 {[%emt 0:00:24]} 65. Rxa7 {[%emt 0:00:03]} Kg4 {[%emt 0:00:26]} 66. Kd5 {[%emt 0:00:03]} h2 {[%emt 0:00:33]} 67. Rh7 {[%emt 0:00:03]} Kg3 {[%emt 0:00:03]} 68. Ke4 {[%emt 0:00:04]} Kg2 {[%emt 0:00:09]} 69. Rg7+ {[%emt 0:00:06]} Kf2 {[%emt 0:00:32]} 70. Rh7 {[%emt 0:00:07]} Kg2 {[%emt 0:00:09]} 1/2-1/2

[Event "98th Caplin Hastings Masters 2024-25"]
[Site "Hastings"]
[Date "2025.01.01"]
[Round "7.4"]
[White "Kovchan, Alexander"]
[Black "Xue, Haowen"]
[Result "0-1"]
[ECO "E03"]
[WhiteElo "2455"]
[BlackElo "2502"]
[Annotator "TA"]
[PlyCount "56"]
[EventDate "2024.12.23"]
[EventType "swiss"]
[EventCountry "ENG"]
[SourceTitle "playchess.com"]
[Source "ChessBase"]
[SourceQuality "1"]
[TimeControl "5400+30"]

{[%evp 10,56,1,0,-3,-18,-14,-39,-37,-49,-57,-67,-67,-64,-37,-76,-60,-118,-109,-110,-124,-133,-112,-242,-227,-226,-243,-227,-221,-345,-357,-344,-338,-372,-366,-411,-371,-350,-358,-760,-678,-1074,-987,-1402,-1168,-1156,-1152,-1100,-1098]} 1. d4 {[%emt 0:00:04]} Nf6 {[%emt 0:00:05]} 2. c4 {[%emt 0:00:10]} e6 {[%emt 0:00:04]} 3. g3 {[%emt 0:00:15]} d5 {[%emt 0:00:22]} 4. Bg2 {[%emt 0:00:25]} dxc4 {[%emt 0:02:55]} 5. Qa4+ {[%emt 0:01:30]} Nbd7 {[%emt 0:03:04]} 6. Qxc4 {[%emt 0:01:22]} c5 {[%emt 0:10:23]} 7. dxc5 {[%emt 0:09:08]} Bxc5 {[%emt 0:00:37]} 8. Nh3 {[%emt 0:00:56]} Rb8 {[%emt 0:14:48] Black is slightly better.} 9. a4 {[%emt 0:10:07]} b6 {[%emt 0:03:47]} 10. Bf4 {[%emt 0:04:31][%cal Ob2b4]} e5 {[%emt 0:02:46]} 11. Bd2 {[%emt 0:01:12]} h6 {[%emt 0:08:36]} 12. Nc3 {[%emt 0:06:01]} O-O {[%emt 0:04:13]} 13. g4 {[%emt 0:04:30]} ({White should play} 13. b4 $15) 13... Bd4 {[%emt 0:18:09][%cal Od7c5] Hoping for ...Nc5!} 14. g5 {[%emt 0:10:02] [#]} hxg5 {[%emt 0:00:13]} 15. Nxg5 {[%emt 0:00:22]} Nc5 $36 {[%emt 0:00:58][%mdl 2048] Keeping White busy.} 16. Nd5 {[%emt 0:02:34]} (16. O-O $17 {was called for.}) 16... Bb7 $19 {[%emt 0:08:05]} (16... Bxb2 17. Qc2 e4 (17... Bxa1 18. Nxf6+ gxf6 19. Qh7#) 18. Qxb2 $17) 17. Nxf6+ {[%emt 0:09:28]} Qxf6 {[%emt 0:00:12]} 18. O-O {[%emt 0:09:35]} e4 {[%emt 0:00:23] ...e3 is the strong threat.} (18... Bxb2 19. Ra2 e4 20. Be3) 19. h4 {[%emt 0:03:31]} (19. Nh3 $142 Bxb2 (19... Ba6 $2 20. Qc2 $19) 20. Rab1) 19... Ba6 {[%emt 0:01:46]} (19... Bxb2 20. Rab1 $19) 20. Qc2 {[%emt 0:02:26]} Bxe2 {[%emt 0:00:44]} 21. Bxe4 {[%emt 0:05:21]} g6 {[%emt 0:02:44]} (21... Bxb2 22. Bb4 Bxf1 (22... Bxa1 $2 23. Qxe2 g6 24. Bd5 $19) 23. Rxf1 $19) 22. Ra3 {[%emt 0:04:24]} Nxe4 {[%emt 0:08:16]} ({Less strong is} 22... Bxb2 23. Bc3 Bxc3 (23... Bxa3 $2 24. Bxf6 Nxe4 25. Nxe4 $18) 24. Qxe2 $19) (22... Bxf1 23. Rf3 Qe7 24. Bb4 $19) 23. Nxe4 {[%emt 0:00:22]} Qf5 {[%emt 0:00:08]} ({Don't take} 23... Qxh4 24. Bg5 Qh5 25. Bf6 $19) 24. Bh6 $2 {[%emt 0:08:30]} (24. Bg5 Bxf1 25. Kxf1) 24... Bxf1 {[%emt 0:00:15] A strong pair of Bishops. Black is clearly winning.} 25. Bxf8 {[%emt 0:00:26]} Rc8 {[%emt 0:01:04]} 26. Qb1 {[%emt 0:01:38]} Bxf2+ {[%emt 0:00:48]} 27. Kxf1 {[%emt 0:00:16] [#]} Rc1+ $3 {[%emt 0:00:40][%mdl 512]} 28. Qxc1 {[%emt 0:00:10]} Be3+ {[%emt 0:00:04] Black took control after the opening.   Weighted Error Value: White=1.14/Black=0.32.  Mistake:       	White=4     	---        Inaccurate:     	White=2     	Black=1      OK:         	White=4     	Black=9      Best:        	White=1     	Black=2} (28... Qxe4 $2 {too greedy.} 29. Kxf2 Qxh4+ 30. Ke2 Qg4+ 31. Kd2 Qg2+ 32. Kd1 Kxf8 33. Qh6+ Kg8 34. Rd3 Qg4+ 35. Kc1 Qc4+ 36. Rc3 Qf1+ 37. Kc2 Qf5+ 38. Kb3 $18) 0-1

[Event "98th Caplin Hastings Masters 2024-25"]
[Site "Hastings"]
[Date "2025.01.01"]
[Round "7.5"]
[White "Ghazarian, Kirk"]
[Black "Waldhausen Gordon, Frederick"]
[Result "1/2-1/2"]
[ECO "C54"]
[WhiteElo "2501"]
[BlackElo "2355"]
[Annotator "TA"]
[PlyCount "94"]
[EventDate "2024.12.23"]
[EventType "swiss"]
[EventCountry "ENG"]
[SourceTitle "playchess.com"]
[Source "ChessBase"]
[SourceQuality "1"]
[TimeControl "5400+30"]

{[%evp 14,94,21,4,19,18,15,16,27,23,25,22,33,31,23,18,18,14,17,0,14,1,13,0,21,0,8,0,20,0,0,0,0,-12,0,-16,-14,-108,-71,-71,-57,-60,-76,-65,-74,-96,-19,-8,-4,0,0,-8,-8,-8,-7,-15,-35,-82,-91,-83,-99,-119,-4,-6,-6,-7,0,0,0,0,0,0,0,0,0,-3,0,0,0,0,0,0,0]} 1. e4 {[%emt 0:00:33]} e5 {[%emt 0:00:06]} 2. Nf3 {[%emt 0:00:07]} Nc6 {[%emt 1:31:24]} 3. Bc4 {[%emt 1:31:20]} Nf6 {[%emt 0:00:30]} 4. d3 {[%emt 0:00:00]} Bc5 {[%emt 0:00:00]} 5. O-O {[%emt 0:00:00]} d6 {[%emt 0:00:00]} 6. c3 {[%emt 0:00:00]} a6 {[%emt 0:01:30]} 7. a4 {[%emt 0:02:00]} O-O {[%emt 0:00:30]} 8. h3 {[%emt 0:00:30]} h6 {[%emt 0:00:30]} 9. Re1 {[%emt 0:00:00]} Ba7 {[%emt 0:00:00]} 10. Nbd2 {[%emt 0:01:00]} Be6 {[%emt 0:01:00]} (10... Nh5 11. Nf1 Qf6 12. Be3 Be6) 11. Bxe6 {[%emt 0:00:00]} (11. b4 {keeps more tension.} Nh5 12. Bb3 Qf6 13. Bxe6 fxe6 14. Nf1) 11... fxe6 {[%emt 0:00:00]} 12. b4 {[%emt 0:00:00]} Ne7 {[%emt 0:00:00]} 13. Nf1 {[%emt 0:00:00]} Ng6 {[%emt 0:01:30]} 14. Ra2 {[%emt 0:02:00]} Qd7 {[%emt 0:00:30]} 15. Ng3 {[%emt 0:00:30]} Qf7 {[%emt 0:00:30]} 16. Be3 {[%emt 0:00:30]} Bxe3 {[%emt 0:00:00]} 17. Rxe3 {[%emt 0:00:30]} Nf4 {[%emt 0:01:00]} 18. d4 {[%emt 0:00:00]} exd4 {[%emt 0:00:00]} 19. cxd4 {[%emt 0:01:00]} Qg6 {[%emt 0:01:00]} 20. Kh2 {[%emt 0:00:30]} Rf7 {[%emt 0:00:30]} 21. Rc2 {[%emt 0:00:30]} h5 {[%emt 0:00:30]} 22. Kg1 {[%emt 0:00:30]} Raf8 {[%emt 0:00:30]} 23. Qc1 {[%emt 0:00:30]} Nh7 {[%emt 0:00:30]} 24. Kh2 {[%emt 0:00:30]} c6 {[%emt 0:00:30]} 25. Qa3 {[%emt 0:00:30]} (25. b5 $11) 25... Ng5 {[%emt 0:00:30]} 26. Nh4 {[%emt 0:00:30]} Qf6 {[%emt 0:00:30]} 27. Ne2 $1 {[%emt 0:00:30]} Nxe2 {[%emt 0:00:00]} 28. Rcxe2 {[%emt 0:00:30]} Qxd4 {[%emt 0:01:00]} 29. Ng6 {[%emt 0:00:30]} Rxf2 {[%emt 0:00:30]} (29... Re8 $17 30. f4 Kh7) 30. Nxf8 $11 {[%emt 0:00:30]} Qe5+ {[%emt 0:00:30]} 31. Kg1 {[%emt 0:00:30]} Rxf8 {[%emt 0:00:30]} 32. Qc3 {[%emt 0:00:30]} Qxc3 {[%emt 0:00:00]} 33. Rxc3 {[%emt 0:00:00]} Rf4 {[%emt 0:01:00]} 34. e5 {[%emt 0:01:00]} d5 {[%emt 0:00:00]} (34... Rxb4 $2 35. exd6 Rd4 36. Rc5 $16) 35. b5 {[%emt 0:00:00]} (35. Rb2 $15) 35... axb5 $17 {[%emt 0:00:00]} (35... Rxa4 $6 36. bxc6 bxc6 37. Rxc6 $11) 36. axb5 {[%emt 0:00:00]} Ne4 {[%emt 0:00:00]} (36... cxb5 $6 37. Rb2 $11) 37. Ra3 {[%emt 0:00:00] [#]} cxb5 {[%emt 0:02:00]} ({Better is} 37... c5 $1 $17 {White must now prevent ...c4.} 38. Ra7 d4 39. Rxb7 d3) 38. Rb2 $11 {[%emt 0:02:00]} Rf5 {[%emt 0:00:00]} 39. Rxb5 {[%emt 0:00:00]} Rxe5 {[%emt 0:00:00]} 40. Rxb7 {[%emt 0:00:00]} Nd6 {[%emt 0:01:30]} 41. Rd7 {[%emt 0:01:30]} Nf5 {[%emt 0:00:30]} 42. g3 {[%emt 0:00:30]} Kh7 {[%emt 0:00:30]} 43. Kf2 {[%emt 0:00:30]} Re4 {[%emt 0:00:30]} 44. Kf3 {[%emt 0:00:30]} Nd4+ {[%emt 0:00:00]} 45. Kf2 {[%emt 0:00:30]} Nf5 {[%emt 0:01:00]} 46. Kf3 {[%emt 0:00:30]} Nd4+ {[%emt 0:00:30]} 47. Kf2 {[%emt 0:00:30]} Nf5 {[%emt 0:00:30]} 1/2-1/2